fUST/lending_fUST_20250226
["ID","MTS","AMOUNT","RATE_DAILY","PERIOD"]
[354509097,1740544264194,-500.0,0.00039452,2]
[354509098,1740544264204,-500.0,0.00039452,2]
[354509099,1740544264214,-500.0,0.00039452,2]
[354509100,1740544264224,-500.0,0.00039452,2]
[354509101,1740544264234,-609.9,0.00039452,2]
[354509102,1740544264243,-500.0,0.00039452,2]
[354509103,1740544264253,-500.0,0.00039452,2]
[354509104,1740544264263,-506.36,0.00039452,2]
[354509105,1740544264272,-500.0,0.00039452,2]
[354509106,1740544264282,-500.0,0.00039452,2]
[354509107,1740544264291,-500.0,0.00039452,2]
[354509108,1740544264301,-500.0,0.00039452,2]
[354509109,1740544264311,-500.0,0.00039452,2]
[354509110,1740544264321,-500.0,0.00039452,2]
[354509111,1740544264331,-500.0,0.00039452,2]
[354509112,1740544264340,-596.83,0.00039452,2]
[354509113,1740544264350,-565.71082376,0.00039452,2]
[354509114,1740544264360,-500.0,0.00039452,2]
[354509115,1740544264370,-586.25,0.00039452,2]
[354509116,1740544264379,-500.0,0.00039452,2]
[354509117,1740544264389,-551.48,0.00039452,2]
[354509118,1740544264400,-500.0,0.00039452,2]
[354509119,1740544264410,-968.85,0.00039452,2]
[354509120,1740544264420,-500.0,0.00039452,2]
[354509121,1740544264430,-500.0,0.00039452,2]
[354509122,1740544264440,-500.0,0.00039452,2]
[354509123,1740544264450,-500.0,0.00039452,2]
[354509124,1740544264461,-513.36079008,0.00039452,2]
[354509125,1740544264471,-500.0,0.00039452,2]
[354509126,1740544264481,-500.0,0.00039452,2]
[354509127,1740544264491,-500.0,0.00039452,2]
[354509128,1740544264503,-502.35145182,0.00039452,2]
[354509129,1740544264513,-500.0,0.00039452,2]
[354509130,1740544264522,-500.0,0.00039452,2]
[354509131,1740544264532,-500.0,0.00039452,2]
[354509132,1740544264543,-500.0,0.00039452,2]
[354509133,1740544264552,-500.0,0.00039452,2]
[354509134,1740544264562,-500.0,0.00039452,2]
[354509135,1740544264572,-685.27,0.00039452,2]
[354509136,1740544264583,-500.0,0.00039452,2]
[354509137,1740544264593,-500.0,0.00039452,2]
[354509138,1740544264603,-500.0,0.00039452,2]
[354509139,1740544264613,-500.0,0.00039452,2]
[354509140,1740544264623,-500.0,0.00039452,2]
[354509141,1740544264633,-500.0,0.00039452,2]
[354509142,1740544264643,-500.0,0.00039452,2]
[354509143,1740544264653,-508.14144609,0.00039452,2]
[354509144,1740544264662,-500.0,0.00039452,2]
[354509145,1740544264673,-500.0,0.00039452,2]
[354509146,1740544264683,-500.0,0.00039452,2]
[354509147,1740544264693,-500.0,0.00039452,2]
[354509148,1740544264703,-500.0,0.00039452,2]
[354509149,1740544264713,-500.0,0.00039452,2]
[354509150,1740544264722,-500.0,0.00039452,2]
[354509151,1740544264732,-957.55,0.00039452,2]
[354509152,1740544264742,-500.0,0.00039452,2]
[354509153,1740544264752,-500.0,0.00039452,2]
[354509154,1740544264762,-500.0,0.00039452,2]
[354509155,1740544264771,-500.0,0.00039452,2]
[354509156,1740544264781,-695.71,0.00039452,2]
[354509157,1740544264791,-500.0,0.00039452,2]
[354509158,1740544264801,-998.92,0.00039452,2]
[354509159,1740544264811,-955.63,0.00039452,2]
[354509160,1740544264820,-500.0,0.00039452,2]
[354509161,1740544264830,-512.11606366,0.00039452,2]
[354509162,1740544264840,-502.99250512,0.00039452,2]
[354509163,1740544264850,-500.0,0.00039452,2]
[354509164,1740544264860,-513.4728672,0.00039452,2]
[354509165,1740544264870,-500.0,0.00039452,2]
[354509166,1740544265039,-500.0,0.00039452,2]
[354509167,1740544265049,-500.0,0.00039452,2]
[354509168,1740544265059,-1281.14,0.00039452,2]
[354509169,1740544265069,-500.0,0.00039452,2]
[354509170,1740544265078,-500.0,0.00039452,2]
[354509171,1740544265088,-358.94247728,0.00039452,2]
[354509172,1740544265097,-520.22,0.00039452,2]
[354509173,1740544265107,-506.51556747,0.00039452,2]
[354509174,1740544265116,-741.57,0.00039452,2]
[354509175,1740544265126,-500.0,0.00039452,2]
[354509176,1740544265136,-500.0,0.00039452,2]
[354509177,1740544265145,-1170.52,0.00039452,2]
[354509178,1740544265155,-500.0,0.00039452,2]
[354509179,1740544265164,-500.0,0.00039452,2]
[354509180,1740544265174,-9359.13,0.00039452,2]
[354509181,1740544265184,-500.0,0.00039452,2]
[354509182,1740544265194,-500.0,0.00039452,2]
[354509183,1740544265203,-500.0,0.00039452,2]
[354509184,1740544265212,-946.31,0.00039452,2]
[354509185,1740544265222,-500.0,0.00039452,2]
[354509186,1740544265231,-500.0,0.00039452,2]
[354509187,1740544265242,-691.55,0.00039452,2]
[354509188,1740544265251,-500.0,0.00039452,2]
[354509189,1740544265260,-2445.19,0.00039452,2]
[354509190,1740544265270,-607.41,0.00039452,2]
[354509191,1740544265279,-1967.57,0.00039452,2]
[354509192,1740544265289,-500.0,0.00039452,2]
[354509193,1740544265300,-500.0,0.00039452,2]
[354509194,1740544265311,-521.23,0.00039452,2]
[354509195,1740544265322,-2973.75,0.00039452,2]
[354509196,1740544265332,-663.57,0.00039452,2]
[354509197,1740544265342,-500.0,0.00039452,2]
[354509198,1740544265352,-500.0,0.00039452,2]
[354509199,1740544265361,-500.0,0.00039452,2]
[354509200,1740544265371,-500.0,0.00039452,2]
[354509201,1740544265381,-996.6,0.00039452,2]
[354509202,1740544265390,-72329.29,0.00039452,2]
[354509203,1740544265400,-500.0,0.00039452,2]
[354509204,1740544265410,-500.0,0.00039452,2]
[354509205,1740544265420,-902.02,0.00039452,2]
[354509206,1740544265429,-500.0,0.00039452,2]
[354509207,1740544265439,-1396.78,0.00039452,2]
[354509208,1740544265448,-755.39,0.00039452,2]
[354509209,1740544265458,-500.0,0.00039452,2]
[354509210,1740544265468,-702.41,0.00039452,2]
[354509211,1740544265478,-500.0,0.00039452,120]
[354509212,1740544265487,-12378.52,0.00039452,2]
[354509213,1740544265499,-500.0,0.00039452,2]
[354509214,1740544265509,-500.0,0.00039452,2]
[354509215,1740544265518,-1038.13,0.00039452,2]
[354509216,1740544265528,-709.18,0.00039452,2]
[354509217,1740544265537,-500.0,0.00039452,2]
[354509218,1740544265547,-500.0,0.00039452,2]
[354509219,1740544265556,-500.0,0.00039452,2]
[354509220,1740544265564,-500.0,0.00039452,2]
[354509221,1740544265575,-500.0,0.00039452,2]
[354509222,1740544265585,-1163.07,0.00039452,2]
[354509223,1740544265594,-1165.42,0.00039452,2]
[354509224,1740544265604,-252.26529075,0.00039452,2]
[354509225,1740544265613,-567.85,0.00039452,2]
[354509226,1740544265623,-500.0,0.00039452,2]
[354509227,1740544265632,-500.0,0.00039452,2]
[354509228,1740544265642,-500.0,0.00039452,2]
[354509229,1740544265651,-539.305579,0.00039452,2]
[354509230,1740544265661,-500.0,0.00039452,2]
[354509231,1740544265671,-500.0,0.00039452,2]
[354509232,1740544265680,-500.0,0.00039452,2]
[354509233,1740544265690,-500.0,0.00039452,2]
[354509234,1740544265699,-2388.56,0.00039452,2]
[354509235,1740544265709,-500.0,0.00039452,2]
[354509236,1740544265718,-2071.86,0.00039452,2]
[354509237,1740544265728,-2276.35,0.00039452,2]
[354509238,1740544265738,-500.0,0.00039452,2]
[354509239,1740544265748,-500.0,0.00039452,2]
[354509240,1740544265757,-462.88,0.00039452,2]
[354509241,1740544265767,-805.84,0.00039452,2]
[354509242,1740544265775,-500.0,0.00039452,2]
[354509243,1740544265785,-4991.19,0.00039452,2]
[354509244,1740544265795,-7488.25,0.00039452,2]
[354509245,1740544265805,-680.72,0.00039452,2]
[354509246,1740544265814,-500.0,0.00039452,2]
[354509247,1740544265823,-500.0,0.00039452,2]
[354509248,1740544265833,-6133.91,0.00039452,2]
[354509249,1740544265842,-500.0,0.00039452,2]
[354509250,1740544265852,-957.39,0.00039452,2]
[354509251,1740544265861,-1005.05,0.00039452,2]
[354509252,1740544265871,-500.0,0.00039452,2]
[354509253,1740544265880,-670.81,0.00039452,2]
[354509254,1740544265889,-916.92,0.00039452,2]
[354509255,1740544265899,-1103.64,0.00039452,2]
[354509256,1740544265908,-1211.22,0.00039452,2]
[354509257,1740544265917,-500.0,0.00039452,2]
[354509258,1740544265927,-743.17,0.00039452,2]
[354509259,1740544265936,-2331.34,0.00039452,2]
[354509260,1740544265946,-500.0,0.00039452,2]
[354509261,1740544265955,-516.29932951,0.00039452,2]
[354509262,1740544265965,-1647.12,0.00039452,2]
[354509263,1740544265975,-500.0,0.00039452,2]
[354509264,1740544265984,-777.71,0.00039452,2]
[354509265,1740544265994,-1861.53,0.00039452,2]
[354509266,1740544266004,-500.0,0.00039452,2]
[354509267,1740544266014,-500.0,0.00039452,2]
[354509268,1740544266023,-4944.6,0.00039452,2]
[354509269,1740544266033,-500.0,0.00039452,2]
[354509270,1740544266043,-2359.47,0.00039452,2]
[354509271,1740544266053,-780.51,0.00039452,2]
[354509272,1740544266063,-500.0,0.00039452,2]
[354509273,1740544266072,-500.0,0.00039452,2]
[354509274,1740544266082,-4514.97,0.00039452,2]
[354509275,1740544266092,-500.0,0.00039452,2]
[354509276,1740544266101,-7379.64,0.00039452,2]
[354509277,1740544266110,-500.0,0.00039452,2]
[354509278,1740544266120,-500.0,0.00039452,2]
[354509279,1740544266129,-500.0,0.00039452,2]
[354509280,1740544266139,-151.0,0.000395,17]
[354509281,1740544266148,-151.0,0.000396,17]
[354509282,1740544266157,-500.0,0.00039726,2]
[354509283,1740544266167,-500.0,0.00039726,2]
[354509284,1740544266176,-500.0,0.00039726,2]
[354509285,1740544266186,-500.0,0.00039726,2]
[354509286,1740544266195,-500.0,0.00039726,2]
[354509287,1740544266205,-500.0,0.00039726,2]
[354509288,1740544266214,-525.16023161,0.00039726,2]
[354509289,1740544266224,-500.0,0.00039726,2]
[354509290,1740544266233,-500.0,0.00039726,2]
[354509291,1740544266243,-500.0,0.00039726,2]
[354509292,1740544266252,-500.0,0.00039726,2]
[354509293,1740544266262,-500.0,0.00039726,2]
[354509294,1740544266271,-500.0,0.00039726,2]
[354509295,1740544266281,-500.0,0.00039726,2]
[354509296,1740544266290,-500.0,0.00039726,2]
[354509297,1740544266300,-338.94245502,0.00039726,2]
[354509298,1740544266309,-500.0,0.00039726,2]
[354509299,1740544266319,-500.0,0.00039726,2]
[354509300,1740544266328,-500.0,0.00039726,2]
[354509301,1740544266337,-500.0,0.00039726,2]
[354509302,1740544266347,-609.9,0.00039726,2]
[354509303,1740544266357,-500.0,0.00039726,2]
[354509304,1740544266366,-500.0,0.00039726,2]
[354509305,1740544266376,-506.36,0.00039726,2]
[354509306,1740544266385,-500.0,0.00039726,2]
[354509307,1740544266395,-500.0,0.00039726,2]
[354509308,1740544266404,-500.0,0.00039726,2]
[354509309,1740544266414,-500.0,0.00039726,2]
[354509310,1740544266423,-500.0,0.00039726,2]
[354509311,1740544266433,-500.0,0.00039726,2]
[354509312,1740544266443,-500.0,0.00039726,2]
[354509313,1740544266452,-596.83,0.00039726,2]
[354509314,1740544266462,-500.0,0.00039726,2]
[354509315,1740544266471,-586.25,0.00039726,2]
[354509316,1740544266481,-500.0,0.00039726,2]
[354509317,1740544266491,-551.48,0.00039726,2]
[354509318,1740544266502,-500.0,0.00039726,2]
[354509319,1740544266512,-968.85,0.00039726,2]
[354509320,1740544266521,-500.0,0.00039726,2]
[354509321,1740544266531,-394.95455115,0.00039726,2]
[354509322,1740544266541,-500.0,0.00039726,2]
[354509323,1740544266551,-500.0,0.00039726,2]
[354509324,1740544266561,-506.70384213,0.00039726,2]
[354509325,1740544266571,-500.0,0.00039726,2]
[354509326,1740544266582,-500.0,0.00039726,2]
[354509327,1740544266591,-500.0,0.00039726,2]
[354509328,1740544266600,-500.0,0.00039726,2]
[354509329,1740544266610,-500.0,0.00039726,2]
[354509330,1740544266619,-500.0,0.00039726,2]
[354509331,1740544266629,-500.0,0.00039726,2]
[354509332,1740544266638,-685.27,0.00039726,2]
[354509333,1740544266647,-500.0,0.00039726,2]
[354509334,1740544266657,-500.0,0.00039726,2]
[354509335,1740544266666,-500.0,0.00039726,2]
[354509336,1740544266675,-508.21926925,0.00039726,2]
[354509337,1740544266685,-500.0,0.00039726,2]
[354509338,1740544266694,-500.0,0.00039726,2]
[354509339,1740544266703,-500.0,0.00039726,2]
[354509340,1740544266713,-500.0,0.00039726,2]
[354509341,1740544266722,-500.0,0.00039726,2]
[354509342,1740544266732,-500.0,0.00039726,2]
[354509343,1740544266743,-159.00011918,0.00039726,2]
[354509344,1740544266751,-500.0,0.00039726,2]
[354509345,1740544266761,-957.55,0.00039726,2]
[354509346,1740544266770,-266.75724183,0.00039726,2]
[354509347,1740544266779,-500.0,0.00039726,2]
[354509348,1740544266789,-500.0,0.00039726,2]
[354509349,1740544266798,-695.71,0.00039726,2]
[354509350,1740544266808,-500.0,0.00039726,2]
[354509351,1740544266817,-998.92,0.00039726,2]
[354509352,1740544266827,-955.63,0.00039726,2]
[354509353,1740544266836,-500.0,0.00039726,2]
[354509354,1740544266847,-500.0,0.00039726,2]
[354509355,1740544266856,-500.0,0.00039726,2]
[354509356,1740544266865,-500.0,0.00039726,2]
[354509357,1740544266875,-1281.14,0.00039726,2]
[354509358,1740544266885,-520.22,0.00039726,2]
[354509359,1740544266894,-741.57,0.00039726,2]
[354509360,1740544266903,-500.0,0.00039726,2]
[354509361,1740544266912,-500.0,0.00039726,2]
[354509362,1740544266922,-1170.52,0.00039726,2]
[354509363,1740544266931,-500.0,0.00039726,2]
[354509364,1740544266940,-500.0,0.00039726,2]
[354509365,1740544266950,-9359.13,0.00039726,2]
[354509366,1740544266959,-500.0,0.00039726,2]
[354509367,1740544266968,-500.0,0.00039726,2]
[354509368,1740544266977,-500.0,0.00039726,2]
[354509369,1740544266987,-946.31,0.00039726,2]
[354509370,1740544266996,-500.0,0.00039726,2]
[354509371,1740544267005,-500.0,0.00039726,2]
[354509372,1740544267014,-691.55,0.00039726,2]
[354509373,1740544267024,-500.0,0.00039726,2]
[354509374,1740544267034,-2445.19,0.00039726,2]
[354509375,1740544267043,-607.41,0.00039726,2]
[354509376,1740544267052,-1967.57,0.00039726,2]
[354509377,1740544267062,-500.0,0.00039726,2]
[354509378,1740544267071,-500.0,0.00039726,2]
[354509379,1740544267080,-2973.75,0.00039726,2]
[354509380,1740544267089,-663.57,0.00039726,2]
[354509381,1740544267099,-500.0,0.00039726,2]
[354509382,1740544267108,-500.0,0.00039726,2]
[354509383,1740544267117,-500.0,0.00039726,2]
[354509384,1740544267127,-500.0,0.00039726,2]
[354509385,1740544267136,-996.6,0.00039726,2]
[354509386,1740544267145,-72329.29,0.00039726,2]
[354509387,1740544267154,-500.0,0.00039726,2]
[354509388,1740544267163,-500.0,0.00039726,2]
[354509389,1740544267173,-902.02,0.00039726,2]
[354509390,1740544267182,-500.0,0.00039726,2]
[354509391,1740544267192,-1396.78,0.00039726,2]
[354509392,1740544267201,-755.39,0.00039726,2]
[354509393,1740544267210,-500.0,0.00039726,2]
[354509394,1740544267219,-702.41,0.00039726,2]
[354509395,1740544267229,-500.0,0.00039726,120]
[354509396,1740544267238,-12378.52,0.00039726,2]
[354509397,1740544267248,-500.0,0.00039726,2]
[354509398,1740544267258,-500.0,0.00039726,2]
[354509399,1740544267273,-1038.13,0.00039726,2]
[354509400,1740544267287,-709.18,0.00039726,2]
[354509401,1740544267297,-500.0,0.00039726,2]
[354509402,1740544267306,-500.0,0.00039726,2]
[354509403,1740544267416,-500.0,0.00039726,2]
[354509404,1740544267426,-500.0,0.00039726,2]
[354509405,1740544267436,-500.0,0.00039726,2]
[354509406,1740544267445,-1163.07,0.00039726,2]
[354509407,1740544267455,-1165.42,0.00039726,2]
[354509408,1740544267464,-567.85,0.00039726,2]
[354509409,1740544267473,-500.0,0.00039726,2]
[354509410,1740544267482,-500.0,0.00039726,2]
[354509411,1740544267492,-500.0,0.00039726,2]
[354509412,1740544267504,-184.95740711,0.00039726,2]
[354509413,1740544267514,-500.0,0.00039726,2]
[354509414,1740544267524,-500.0,0.00039726,2]
[354509415,1740544267533,-500.0,0.00039726,2]
[354509416,1740544267542,-2388.56,0.00039726,2]
[354509417,1740544267552,-500.0,0.00039726,2]
[354509418,1740544267562,-2071.86,0.00039726,2]
[354509419,1740544267571,-2276.35,0.00039726,2]
[354509420,1740544267581,-500.0,0.00039726,2]
[354509421,1740544267590,-500.0,0.00039726,2]
[354509422,1740544267600,-805.84,0.00039726,2]
[354509423,1740544267609,-500.0,0.00039726,2]
[354509424,1740544267618,-4991.19,0.00039726,2]
[354509425,1740544267628,-7488.25,0.00039726,2]
[354509426,1740544267637,-680.72,0.00039726,2]
[354509427,1740544267646,-500.0,0.00039726,2]
[354509428,1740544267655,-500.0,0.00039726,2]
[354509429,1740544267667,-6133.91,0.00039726,2]
[354509430,1740544267679,-500.0,0.00039726,2]
[354509431,1740544267689,-957.39,0.00039726,2]
[354509432,1740544267697,-1005.05,0.00039726,2]
[354509433,1740544267707,-500.0,0.00039726,2]
[354509434,1740544267716,-670.81,0.00039726,2]
[354509435,1740544267725,-916.92,0.00039726,2]
[354509436,1740544267734,-1103.64,0.00039726,2]
[354509437,1740544267744,-1211.22,0.00039726,2]
[354509438,1740544267753,-500.0,0.00039726,2]
[354509439,1740544267762,-743.17,0.00039726,2]
[354509440,1740544267771,-2331.34,0.00039726,2]
[354509441,1740544267781,-500.0,0.00039726,2]
[354509442,1740544267790,-1647.12,0.00039726,2]
[354509443,1740544267800,-500.0,0.00039726,2]
[354509444,1740544267809,-777.71,0.00039726,2]
[354509445,1740544267819,-1861.53,0.00039726,2]
[354509446,1740544267828,-500.0,0.00039726,2]
[354509447,1740544267838,-4944.6,0.00039726,2]
[354509448,1740544267847,-500.0,0.00039726,2]
[354509449,1740544267856,-2359.47,0.00039726,2]
[354509450,1740544267865,-780.51,0.00039726,2]
[354509451,1740544267874,-502.24176998,0.00039726,2]
[354509452,1740544267883,-500.0,0.00039726,2]
[354509453,1740544267892,-4514.97,0.00039726,2]
[354509454,1740544267901,-500.0,0.00039726,2]
[354509455,1740544267910,-7379.64,0.00039726,2]
[354509456,1740544267920,-500.0,0.00039726,2]
[354509457,1740544267929,-2010.0,0.00039729,120]
[354509458,1740544267938,-2010.0,0.00039729,120]
[354509459,1740544267948,-2010.0,0.00039729,120]
[354509460,1740544267957,-2010.0,0.00039729,120]
[354509461,1740544267967,-2006.0,0.00039729,120]
[354509462,1740544267976,-151.0,0.00039729,14]
[354509463,1740544267986,-151.0,0.00039729,14]
[354509464,1740544267995,-299.848717,0.00039729,14]
[354509465,1740544268004,-151.0,0.00039729,14]
[354509466,1740544268013,-401.28565227,0.0003988,2]
[354509467,1740544268023,-217.0,0.0004,120]
[354509468,1740544268032,-13746.02131776,0.0004,35]
[354509469,1740544268041,-500.0,0.0004,2]
[354509470,1740544268050,-500.0,0.0004,2]
[354509471,1740544268059,-500.0,0.0004,2]
[354509472,1740544268069,-500.0,0.0004,2]
[354509473,1740544268078,-500.0,0.0004,2]
[354509474,1740544268087,-311.8897814,0.0004,2]
[354509475,1740544268097,-500.0,0.0004,2]
[354509476,1740544268106,-500.0,0.0004,2]
[354509477,1740544268115,-288.56270704,0.0004,2]
[354509478,1740544268124,-500.0,0.0004,2]
[354509479,1740544268134,-500.0,0.0004,2]
[354509480,1740544268143,-500.0,0.0004,2]
[354509481,1740544268152,-227.84843417,0.0004,2]
[354509482,1740544268162,-500.0,0.0004,2]
[354509483,1740544268171,-500.0,0.0004,2]
[354509484,1740544268181,-500.0,0.0004,2]
[354509485,1740544268190,-500.0,0.0004,2]
[354509486,1740544268200,-491.03234021,0.0004,2]
[354509487,1740544268209,-609.9,0.0004,2]
[354509488,1740544268218,-500.0,0.0004,2]
[354509489,1740544268228,-500.0,0.0004,2]
[354509490,1740544268237,-506.36,0.0004,2]
[354509491,1740544268246,-500.0,0.0004,2]
[354509492,1740544268256,-500.0,0.0004,2]
[354509493,1740544268266,-500.0,0.0004,2]
[354509494,1740544268275,-500.0,0.0004,2]
[354509495,1740544268284,-500.0,0.0004,2]
[354509496,1740544268293,-500.0,0.0004,2]
[354509497,1740544268302,-596.83,0.0004,2]
[354509498,1740544268312,-500.0,0.0004,2]
[354509499,1740544268321,-586.25,0.0004,2]
[354509500,1740544268331,-500.0,0.0004,2]
[354509501,1740544268340,-551.48,0.0004,2]
[354509502,1740544268350,-293.21946644,0.0004,2]
[354509503,1740544268359,-968.85,0.0004,2]
[354509504,1740544268368,-500.0,0.0004,2]
[354509505,1740544268378,-500.0,0.0004,2]
[354509506,1740544268388,-500.0,0.0004,2]
[354509507,1740544268397,-500.0,0.0004,2]
[354509508,1740544268406,-500.0,0.0004,2]
[354509509,1740544268415,-500.0,0.0004,2]
[354509510,1740544268425,-500.0,0.0004,2]
[354509511,1740544268434,-500.0,0.0004,2]
[354509512,1740544268443,-500.0,0.0004,2]
[354509513,1740544268453,-500.0,0.0004,2]
[354509514,1740544268465,-685.27,0.0004,2]
[354509515,1740544268475,-500.0,0.0004,2]
[354509516,1740544268484,-500.0,0.0004,2]
[354509517,1740544268493,-500.0,0.0004,2]
[354509518,1740544268505,-500.0,0.0004,2]
[354509519,1740544268514,-567.13883179,0.0004,2]
[354509520,1740544268523,-500.0,0.0004,2]
[354509521,1740544268532,-500.0,0.0004,2]
[354509522,1740544268541,-500.0,0.0004,2]
[354509523,1740544268552,-151.289527,0.0004,14]
[354509524,1740544268561,-500.0,0.0004,2]
[354509525,1740544268570,-151.0,0.0004,14]
[354509526,1740544268580,-266.32536561,0.0004,2]
[354509527,1740544268590,-151.0,0.0004,14]
[354509528,1740544268600,-957.55,0.0004,2]
[354509529,1740544268610,-500.0,0.0004,2]
[354509530,1740544268620,-500.0,0.0004,2]
[354509531,1740544268630,-695.71,0.0004,2]
[354509532,1740544268639,-998.92,0.0004,2]
[354509533,1740544268649,-955.63,0.0004,2]
[354509534,1740544268658,-500.0,0.0004,2]
[354509535,1740544268669,-500.0,0.0004,2]
[354509536,1740544268682,-278.169556,0.0004,14]
[354509537,1740544268696,-500.0,0.0004,2]
[354509538,1740544268705,-151.0,0.0004,14]
[354509539,1740544268718,-500.0,0.0004,2]
[354509540,1740544268727,-1281.14,0.0004,2]
[354509541,1740544268737,-520.22,0.0004,2]
[354509542,1740544268747,-741.57,0.0004,2]
[354509543,1740544268756,-500.0,0.0004,2]
[354509544,1740544268765,-500.0,0.0004,2]
[354509545,1740544268775,-151.0,0.0004,14]
[354509546,1740544268784,-290.540756,0.0004,14]
[354509547,1740544268793,-290.540756,0.0004,14]
[354509548,1740544268802,-1170.52,0.0004,2]
[354509549,1740544268812,-500.0,0.0004,2]
[354509550,1740544268821,-500.0,0.0004,2]
[354509551,1740544268831,-9359.13,0.0004,2]
[354509552,1740544268840,-500.0,0.0004,2]
[354509553,1740544268850,-151.0,0.0004,14]
[354509554,1740544268859,-151.0,0.0004,14]
[354509555,1740544268868,-500.0,0.0004,2]
[354509556,1740544268877,-946.31,0.0004,2]
[354509557,1740544268887,-208.978344,0.0004,14]
[354509558,1740544268896,-500.0,0.0004,2]
[354509559,1740544268906,-245.0,0.0004,14]
[354509560,1740544268916,-549.43924333,0.0004,2]
[354509561,1740544268925,-691.55,0.0004,2]
[354509562,1740544268935,-252.22930597,0.0004,2]
[354509563,1740544268944,-151.0,0.0004,14]
[354509564,1740544268954,-2445.19,0.0004,2]
[354509565,1740544268963,-607.41,0.0004,2]
[354509566,1740544268973,-1967.57,0.0004,2]
[354509567,1740544268983,-151.0,0.0004,14]
[354509568,1740544268994,-510.49879309,0.0004,120]
[354509569,1740544269003,-500.0,0.0004,2]
[354509570,1740544269013,-500.0,0.0004,2]
[354509571,1740544269022,-2973.75,0.0004,2]
[354509572,1740544269032,-663.57,0.0004,2]
[354509573,1740544269041,-500.0,0.0004,2]
[354509574,1740544269051,-500.0,0.0004,2]
[354509575,1740544269061,-581.01720494,0.0004,2]
[354509576,1740544269071,-500.0,0.0004,2]
[354509577,1740544269080,-996.6,0.0004,2]
[354509578,1740544269089,-151.619424,0.0004,14]
[354509579,1740544269099,-72329.29,0.0004,2]
[354509580,1740544269108,-151.505747,0.0004,14]
[354509581,1740544269118,-153.577231,0.0004,14]
[354509582,1740544269128,-500.0,0.0004,2]
[354509583,1740544269138,-500.0,0.0004,2]
[354509584,1740544269147,-902.02,0.0004,2]
[354509585,1740544269157,-500.0,0.0004,2]
[354509586,1740544269167,-151.0,0.0004,14]
[354509587,1740544269177,-1396.78,0.0004,2]
[354509588,1740544269187,-755.39,0.0004,2]
[354509589,1740544269196,-500.0,0.0004,2]
[354509590,1740544269206,-151.0,0.0004,14]
[354509591,1740544269216,-702.41,0.0004,2]
[354509592,1740544269225,-500.0,0.0004,120]
[354509593,1740544269235,-151.0,0.0004,14]
[354509594,1740544269244,-12378.52,0.0004,2]
[354509595,1740544269255,-568.69573801,0.0004,2]
[354509596,1740544269264,-151.0,0.0004,14]